Cogmind - Beta 13 @@@ ROGUE MODE // 2024.04.13 @ 00:01:52 Player: RD-BKR Result: Self-destructed Performance ------------- Evolutions (3) 1500 Regions Visited (6) 1200 Robots Destroyed (51) 255 Value Destroyed (1711) 1711 Prototype IDs (29) 580 Alien Tech Used (0) 0 Bonus (470) 470 TOTAL SCORE: 5716 Bonus ------- Follower Combat Kills 184 Aligned with FarCom 300 Friendly Fire -14 Cogmind --------- Core Integrity 655/700 Matter 168/300 Energy 250/250 System Corruption 1% Temperature Cool (0) Movement Treading (236) Ox1 Location -7/Factory Parts ------- > --- POWER (1) -------- Ion Engine > --- PROPULSION (4) --- Light Treads Light Treads Light Treads Advanced Treads > --- UTILITY (6) ------ Huge Storage Unit Hacking Suite Hacking Suite Hacking Suite Hacking Suite System Shield > --- WEAPON (2) ------- Minigun High-powered Shotgun > --- INVENTORY (25) --- Armored Wheel VTOL Module VTOL Module High-capacity Matter Pod (200) Advanced Weight Redist. System Advanced Weight Redist. System Improved Utility Shielding System Shield System Shield Authchip [R/NC] Authchip [Processor] Chronowheel Assault Rifle Minigun Battle Cannon Grenade Launcher Rocket Launcher Rocket Launcher Datajack Mace Katana Peak State ------------ > --- POWER ------------ Ion Engine > --- PROPULSION ------- Light Treads Light Treads Light Treads Advanced Treads > --- UTILITY ---------- Huge Storage Unit Hacking Suite Hacking Suite Hacking Suite Hacking Suite System Shield > --- WEAPON ----------- Minigun High-powered Shotgun > --- INVENTORY -------- Armored Wheel VTOL Module VTOL Module High-capacity Matter Pod Advanced Weight Redist. System Advanced Weight Redist. System Improved Utility Shielding System Shield System Shield Authchip [R/NC] Authchip [Processor] Chronowheel Assault Rifle Minigun Battle Cannon Grenade Launcher Rocket Launcher Rocket Launcher Datajack Mace Katana [Rating: 35] Favorites ----------- Power Ion Engine Engine Ion Engine Power Core Light Nuclear Core Propulsion Light Treads Treads Light Treads Leg Aluminum Leg Wheel Wheel Utility Hacking Suite Device Seismic Detector Storage Huge Storage Unit Hackware Hacking Suite Weapon High-powered Shotgun Energy Gun EM Shotgun Ballistic Gun High-powered Shotgun Ballistic Cannon Battle Cannon Launcher Rocket Launcher Impact Weapon Mace Slashing Weapon Katana Special Melee Weapon Datajack Build | -11 -10 -10 -10 -9 -8 -7 ------- Run | Yrd Mat Min Exi Min Mat Fac Slots Evolved 6 | . . . . . 4 2 Power . | . . . . . . . Propulsion 2 | . . . . . 2 . Utility 4 | . . . . . 2 2 Weapon . | . . . . . . . Parts Attached 65 | 2 16 1 . 7 34 5 Power 5 | . 2 . . . 3 . Engine 4 | . 2 . . . 2 . Core 1 | . . . . . 1 . Reactor . | . . . . . . . Propulsion 22 | 2 9 . . 2 8 1 Treads 12 | 2 5 . . . 4 1 Leg . | . . . . . . . Wheel 10 | . 4 . . 2 4 . Hover . | . . . . . . . Flight . | . . . . . . . Utility 11 | . 3 . . 1 4 3 Device 2 | . 1 . . . 1 . Storage 3 | . 2 . . 1 . . Processor . | . . . . . . . Hackware 6 | . . . . . 3 3 Protection . | . . . . . . . Artifact . | . . . . . . . Weapon 27 | . 2 1 . 4 19 1 Energy Gun 4 | . . . . . 4 . Energy Cannon . | . . . . . . . Ballistic Gun 10 | . 1 1 . 1 6 1 Ballistic Cannon 1 | . . . . . 1 . Launcher 4 | . . . . 3 1 . Special Weapon . | . . . . . . . Impact Weapon 5 | . . . . . 5 . Slashing Weapon 2 | . . . . . 2 . Piercing Weapon . | . . . . . . . Special Melee Weapon 1 | . 1 . . . . . Unidentified Prototypes . | . . . . . . . Parts Lost 18 | . 1 . . 4 12 1 Power 3 | . . . . 1 2 . Propulsion 8 | . 1 . . 1 6 . Utility 2 | . . . . 1 1 . Weapon 5 | . . . . 1 3 1 Highest Loss Streak 5 | . 1 . . 4 5 1 To Critical Strikes . | . . . . . . . Average Slot Usage (%) 83 | . 98 100 100 71 69 85 Engine 7 | . 14 14 14 . 3 7 Core 1 | . . . . . 3 . Treads 16 | . 24 28 28 1 3 28 Wheel 8 | . 3 . . 26 15 . Device 4 | . 12 14 14 . . . Storage 11 | . 14 14 14 14 9 7 Hackware 11 | . . . . . 16 30 Ballistic Gun 15 | . 25 25 28 4 8 10 Launcher 2 | . . . . 23 . . Impact Weapon 1 | . . . . . 4 . Naked Turns . | . . . . . . . Heaviest Build 95 | 11 29 29 29 87 95 91 Greatest Support 82 | 40 40 40 40 20 69 82 Greatest Overweight (x) 27 | . . . . 4 27 1 Average Overweight (x) 1 | . . . . 3 3 1 Largest Inventory Capacity 25 | 8 15 15 15 25 25 25 Average Capacity 20 | 8 10 15 15 24 25 25 Most Carried 25 | 6 12 14 15 17 25 22 Average Carried 16 | 5 8 12 14 15 21 21 Final Capacity 25 | 8 15 15 15 25 25 25 Final Carried 22 | 4 12 14 15 17 22 21 Class Distribution -------------------- 57% | Mutant 34% | Hacker-Mutant 7% | Scavenger-Mutant Dominant Class ---------------- Mutant | -10/Materials Mutant | -10/Mines Mutant | -10/Exiles Mutant | -9/Mines Hacker-Mutant | -8/Materials Hacker-Mutant | -7/Factory Resources | -11 -10 -10 -10 -9 -8 -7 ----------- Run | Yrd Mat Min Exi Min Mat Fac Matter Collected 1714 | 175 426 150 . 110 715 138 Remotely . | . . . . . . . Salvage Created 1797 | . 393 37 . 77 1129 161 Parts 104 | . 32 4 . 4 51 13 Haulers Intercepted 4 | . 2 . . . 2 . Recyclers Shooed 1 | . . . . . 1 . Parts Field Recycled . | . . . . . . . Retrieved Matter . | . . . . . . . Parts Self-Destructed . | . . . . . . . Prevented . | . . . . . . . Kills | -11 -10 -10 -10 -9 -8 -7 ------- Run | Yrd Mat Min Exi Min Mat Fac Combat Hostiles Destroyed 41 | . 10 2 . 2 22 5 Melee 3 | . . . . . 3 . Guns 33 | . 10 2 . 1 15 5 Cannons 3 | . . . . . 3 . AOE 1 | . . . . 1 . . Classes Destroyed 13 | . 6 . . 1 5 1 Builder 1 | . 1 . . . . . Tunneler 1 | . 1 . . . . . Hauler 4 | . 2 . . . 2 . Mechanic 1 | . . . . . 1 . Operator 2 | . 1 . . . 1 . Watcher 1 | . . . . . 1 . Swarmer 8 | . 6 2 . . . . Grunt 20 | . 4 . . 1 12 3 Brawler 1 | . . . . . 1 . Duelist 2 | . . . . 1 1 . Sentry 6 | . . . . . 6 . Hunter 2 | . . . . . 2 . Programmer 2 | . . . . . . 2 Best Kill Streak 4 | . 3 1 . 2 4 4 Combat Bots Only 4 | . 3 1 . 2 3 4 Max Kills in Single Turn 1 | . 1 1 . 1 1 1 Gunslinging . | . . . . . . . Exploded 1 | . . . . 1 . . Melee 1 | . . . . . 1 . Uniques/NPCs Destroyed . | . . . . . . . Combat | -11 -10 -10 -10 -9 -8 -7 -------- Run | Yrd Mat Min Exi Min Mat Fac Hostile Shots Fired 228 | . 50 3 . 15 121 39 Missed 51 | . 7 . . 1 31 12 Damage Taken 2700 | . 445 30 . 366 1458 401 Core 468 | . 53 . . 2 368 45 Absorbed by Shields . | . . . . . . . Core Remaining (%) 70 | 100 . . . 78 33 . Volleys Fired 156 | . 48 4 . 7 70 27 Largest 2 | . 2 2 . 2 2 2 Hottest 90 | . 40 40 . 53 90 50 Shots Fired 293 | . 96 8 . 13 124 52 Gun 276 | . 96 8 . 11 109 52 Cannon 15 | . . . . . 15 . Launcher 2 | . . . . 2 . . Special . | . . . . . . . Kinetic 274 | . 96 8 . 11 107 52 Thermal . | . . . . . . . Explosive 2 | . . . . 2 . . Electromagnetic 17 | . . . . . 17 . Robot Hit Streak 14 | . 8 1 . 11 14 7 Robot Miss Streak 5 | . 5 4 . 1 4 5 Penetration Max . | . . . . . . . Secondary Targets 3 | . 1 . . . 2 . Max Gunslinging Chain 1 | . 1 . . . 1 . Shots Hit Robots 226 | . 65 2 . 11 109 39 Core Hits 97 | . 25 2 . 3 54 13 Critical Kills . | . . . . . . . Critical Parts Destroyed 4 | . 1 . . . 3 . Critical Strikes 6 | . 1 . . . 5 . Destroy 1 | . 1 . . . . . Blast 1 | . . . . . 1 . Smash 3 | . . . . . 3 . Sever 1 | . . . . . 1 . Melee Attacks 35 | . 7 . . . 28 . Impact 23 | . . . . . 23 . Slashing 5 | . . . . . 5 . Piercing . | . . . . . . . Sneak Attacks 7 | . 4 . . . 3 . Combat Hostiles . | . . . . . . . Follow-up Attacks 1 | . . . . . 1 . Damage Inflicted 3783 | . 663 35 . 277 2105 703 Guns 2745 | . 628 25 . 109 1280 703 Cannons 211 | . . . . . 211 . Explosions 197 | . . . . 131 66 . Melee 514 | . . . . . 514 . Ramming 116 | . 35 10 . 37 34 . Kinetic 2729 | . 628 25 . 109 1264 703 Thermal 66 | . . . . . 66 . Explosive 131 | . . . . 131 . . Electromagnetic 227 | . . . . . 227 . Impact 347 | . . . . . 347 . Slashing 167 | . . . . . 167 . Piercing . | . . . . . . . Highest Corruption 4 | . . . . . 4 1 Average Corruption 2 | . . . . . 2 1 Corruption Purged . | . . . . . . . Corruption Blocked . | . . . . . . . Effects 28 | . . . . . 28 . Message Errors 2 | . . . . . 2 . Matter Fused 9 | . . . . . 9 . Heat Flow Errors 3 | . . . . . 3 . Energy Discharges 2 | . . . . . 2 . Parts Rejected 2 | . . . . . 2 . Data Loss (minor) 4 | . . . . . 4 . Data Loss (major) 3 | . . . . . 3 . Misfires 2 | . . . . . 2 . Alerts 1 | . . . . . 1 . Overload Shots . | . . . . . . . Overflow Damage 233 | . . . . 19 214 . Projectiles . | . . . . . . . Explosions 55 | . . . . 19 36 . Melee 178 | . . . . . 178 . Knockbacks 4 | . 1 . . . 3 . Impact 1 | . 1 . . . . . Kinetic 2 | . . . . . 2 . Secondary 1 | . . . . . 1 . Self-Inflicted Damage 123 | . . . . 69 54 . Shots 3 | . . . . 2 1 . Rammed 13 | . 6 3 . 1 3 . Targets Rammed 14 | . 7 3 . 1 3 . Kicked . | . . . . . . . Crushed 1 | . 1 . . . . . Highest Temperature 224 | . 35 . . 6 224 24 Average Temperature 39 | . 13 . . 6 56 6 Received Heat Transfer 885 | . 177 . . 42 540 126 Siege Activations . | . . . . . . . Robots Corrupted . | . . . . . . . Combat Hostiles . | . . . . . . . Parts Fried 6 | . . . . . 6 . Impact Corruptions 7 | . . . . . 7 . Robots Melted . | . . . . . . . Combat Hostiles . | . . . . . . . Parts Melted . | . . . . . . . Heat Transferred 100 | . . . . . 100 . Parts Sabotaged . | . . . . . . . Parts Stolen . | . . . . . . . Parts Stripped . | . . . . . . . Power Chain Reactions 1 | . . . . . 1 . Alert | -11 -10 -10 -10 -9 -8 -7 ------- Run | Yrd Mat Min Exi Min Mat Fac Peak Influence 297 | . 257 185 . 46 297 121 Initial 121 | . . 10 . . . 121 Average 100 | . 90 103 . 23 149 60 Maximum Alert Level 1 | . 1 . . . 1 . Low Security (%) 88 | 100 90 100 . 100 72 100 Level 1 11 | . 9 . . . 27 . Level 2 . | . . . . . . . Level 3 . | . . . . . . . Level 4 . | . . . . . . . Level 5 . | . . . . . . . High Security . | . . . . . . . Max Security . | . . . . . . . Squads Dispatched 7 | . 1 . . . 3 3 Investigation 1 | . . . . . 1 . Extermination 2 | . . . . . . 2 Reinforcement 3 | . 1 . . . 1 1 Assault . | . . . . . . . Garrison 1 | . . . . . 1 . Intercept . | . . . . . . . Searches Triggered . | . . . . . . . Construction Impeded . | . . . . . . . Haulers Reinforced . | . . . . . . . Active Scanning Responses . | . . . . . . . Cargo Convoy Interrupts . | . . . . . . . Stealth | -11 -10 -10 -10 -9 -8 -7 --------- Run | Yrd Mat Min Exi Min Mat Fac Distress Signals 9 | . 2 . . . 7 . Communications Jammed . | . . . . . . . Distress Signals . | . . . . . . . Times Spotted 96 | . 22 13 . 2 53 6 Peak Tracking Total 5 | . 4 3 . 2 5 4 Tactical Retreats 2 | . 1 . . . 1 . Traps | -11 -10 -10 -10 -9 -8 -7 ------- Run | Yrd Mat Min Exi Min Mat Fac Traps Triggered 1 | . . . . . 1 . Indirectly . | . . . . . . . Trap Hack Attempts . | . . . . . . . Triggered . | . . . . . . . Disarmed . | . . . . . . . Reprogrammed . | . . . . . . . Reused . | . . . . . . . Traps Extracted . | . . . . . . . Installed . | . . . . . . . Triggered . | . . . . . . . Machines | -11 -10 -10 -10 -9 -8 -7 ---------- Run | Yrd Mat Min Exi Min Mat Fac Machines Disabled 2 | . . . . . 2 . Max in Single Turn 1 | . . . . . 1 . Garrison Access 2 | . . . . . 1 1 Machines Repaired . | . . . . . . . Machines Dismantled . | . . . . . . . Machines Sabotaged . | . . . . . . . Overloaded Fab Kills . | . . . . . . . Hacking | -11 -10 -10 -10 -9 -8 -7 --------- Run | Yrd Mat Min Exi Min Mat Fac Machines Accessed 20 | . 7 . 1 . 8 4 Terminals 15 | . 7 . . . 7 1 Fabricators 1 | . . . . . . 1 Repair Stations . | . . . . . . . Recycling Units 1 | . . . . . . 1 Scanalyzers . | . . . . . . . Garrison Access 2 | . . . . . 1 1 Total Hacks 38 | . 16 . 1 . 15 6 Successful 21 | . 9 . 1 . 8 3 Failed 17 | . 7 . . . 7 3 Catastrophic 2 | . . . . . 2 . Database Lockouts . | . . . . . . . Manual 21 | . 10 . 1 . 10 . Terminals 33 | . 16 . . . 14 3 Fabricators 1 | . . . . . . 1 Repair Stations . | . . . . . . . Recycling Units 1 | . . . . . . 1 Scanalyzers . | . . . . . . . Garrison Access 2 | . . . . . 1 1 Terminal Hacks 11 | . 6 . 1 . 4 . Prototype ID Bank 4 | . 3 . . . 1 . Branch Access Points 1 | . . . . . 1 . Terminal Index 1 | . 1 . . . . . Locate Traps 3 | . 1 . . . 2 . Zone Layout 1 | . 1 . . . . . Derelict Proto ID Bank 1 | . . . 1 . . . Fabricator Hacks 1 | . . . . . . 1 Network Status 1 | . . . . . . 1 Repair Station Hacks . | . . . . . . . Recycling Unit Hacks 1 | . . . . . . 1 Report Inventory 1 | . . . . . . 1 Scanalyzer . | . . . . . . . Garrison Access Hacks 2 | . . . . . 1 1 Seal Access 2 | . . . . . 1 1 Unauthorized Hacks 6 | . 3 . . . 3 . Terminals 6 | . 3 . . . 3 . Assimilate 3 | . 1 . . . 2 . Botnet 1 | . 1 . . . . . Operators 2 | . 1 . . . 1 . Fabricators . | . . . . . . . Repair Stations . | . . . . . . . Recycling Units . | . . . . . . . Scanalyzers . | . . . . . . . Garrison Access . | . . . . . . . Data Cores Recovered . | . . . . . . . Used . | . . . . . . . Hacking Detections 13 | . 6 . . . 5 2 Full Trace Events 1 | . . . . . 1 . Feedback Events . | . . . . . . . Feedback Blocked . | . . . . . . . Robot Schematics Acquired . | . . . . . . . Robots Built . | . . . . . . . Authchips . | . . . . . . . Time . | . . . . . . . Total Robot Build Rating . | . . . . . . . Part Schematics Acquired . | . . . . . . . Parts Built . | . . . . . . . Authchips . | . . . . . . . Time . | . . . . . . . Total Part Build Rating . | . . . . . . . Parts Repaired . | . . . . . . . Time . | . . . . . . . Parts Recycled . | . . . . . . . Recycled Matter . | . . . . . . . Retrieved Matter . | . . . . . . . Retrieved Components . | . . . . . . . Parts Scanalyzed . | . . . . . . . Part Schematics Acquired . | . . . . . . . Parts Damaged . | . . . . . . . Bothacking | -11 -10 -10 -10 -9 -8 -7 ------------ Run | Yrd Mat Min Exi Min Mat Fac Used RIF Installer . | . . . . . . . Robots Hacked 3 | . 3 . . . . . Non-combat 3 | . 3 . . . . . Combat . | . . . . . . . Robot Hacks Applied 3 | . 3 . . . . . parse_system 2 | . 2 . . . . . find_recycling 1 | . 1 . . . . . Relay Couplers Released . | . . . . . . . Fabnet Peak Effective % . | . . . . . . . Robots Rewired . | . . . . . . . Allies Hacked . | . . . . . . . Hacks Repelled . | . . . . . . . Allies | -11 -10 -10 -10 -9 -8 -7 -------- Run | Yrd Mat Min Exi Min Mat Fac Total Allies 8 | . . 5 . 1 2 . Largest Group 3 | . . 3 2 1 1 1 Highest-Rated Group 61 | . . 61 45 31 31 10 Highest-Rated Ally 31 | . . 31 31 31 31 10 Total Orders 2 | . . . . . . 2 STAY 1 | . . . . . . 1 FOLLOW 1 | . . . . . . 1 Ally Attacks 49 | . . 36 . . 13 . Total Damage 552 | . . 362 . . 190 . Kills 16 | . . 13 . . 3 . Allies Corrupted . | . . . . . . . Allies Melted . | . . . . . . . Intel | -11 -10 -10 -10 -9 -8 -7 ------- Run | Yrd Mat Min Exi Min Mat Fac Robot Analysis Total . | . . . . . . . Derelict Logs Recovered 4 | . . 3 . 1 . . Drone Launches . | . . . . . . . Drone Recoveries . | . . . . . . . Exploration | -11 -10 -10 -10 -9 -8 -7 ------------- Run | Yrd Mat Min Exi Min Mat Fac Turns Passed 6805 | 4 1351 854 355 733 2307 1201 Spaces Moved 3348 | 1 637 508 222 479 1132 369 Core 1 | . . . . . 1 . Treads 1827 | 1 601 508 222 9 117 369 Legs . | . . . . . . . Wheels 1520 | . 36 . . 470 1014 . Hover . | . . . . . . . Flight . | . . . . . . . Fastest Speed 80 | 160 80 160 160 140 116 236 Average Speed 163 | 160 155 160 160 142 154 236 Slowest Speed 1400 | 160 160 160 160 480 1400 240 Overloaded Moves . | . . . . . . . Propulsion Burnouts . | . . . . . . . Robots Hopped . | . . . . . . . Cave-ins Triggered . | . . . . . . . Exploration Rate (%) 61 | 2 97 94 60 90 79 9 Regions Visited 6 Branch Regions 3 Pre-discovered Areas 2 | . . 1 . 1 . . Known Exits Taken 1 | . . . . . 1 . Unknown Exits Taken 5 | 1 1 1 1 1 . . Scrap Searched 5 | . . 1 . 4 . . Spaces Dug 10 | . . . . . 10 . Terrain Destroyed 39 | . . . . 21 18 . Melee 10 | . . . . . 10 . Projectile . | . . . . . . . AOE 29 | . . . . 21 8 . Terrain Rammed . | . . . . . . . Walls Destroyed . | . . . . . . . Machines Disabled . | . . . . . . . Actions | -11 -10 -10 -10 -9 -8 -7 --------- Run | Yrd Mat Min Exi Min Mat Fac Total 4335 | 4 901 540 222 515 1507 646 Wait 679 | . 170 23 . 17 225 244 Move 3342 | . 636 507 221 478 1131 369 Hop . | . . . . . . . Pick Up 32 | . 11 2 1 4 13 1 Fast Attach 16 | . 1 . . 1 11 3 Attach 16 | 2 1 . . 2 9 2 Detach 2 | . . . . . 2 . Swap 33 | . 14 1 . 4 14 . Drop 11 | 2 6 . . 1 2 . Fire 156 | . 48 4 . 7 70 27 Melee 34 | . 7 . . . 27 . Ram 3 | . . . . 1 2 . Kick . | . . . . . . . Crush 11 | . 7 3 . . 1 . Escape Stasis . | . . . . . . . Rewire . | . . . . . . . Trap . | . . . . . . . Miscellaneous . | . . . . . . . Route ------- -11/Scrapyard -10/Materials (discovered 5 exits: [*Mat x3] / [*Min x2]) -10/Mines (discovered 3 exits: [*Mat x2] / *Exi) -10/Exiles -9/Mines (discovered 2 exits: *Mat x2) -8/Materials (discovered 2 exits: *Fac x2) -7/Factory History --------- Turn | Location | Event 5 | -11/Scrapyard | Discovered new exit (range 0) 5 | -11/Scrapyard | Entered Materials 320 | -10/Materials | Build established: Mutant 402 | -10/Materials | Discovered new exit (range 8) 858 | -10/Materials | Discovered new exit (range 11) 1012 | -10/Materials | Discovered new exit (range 6) 1059 | -10/Materials | Discovered new exit (range 16) 1307 | -10/Materials | Discovered new exit (range 15) 1356 | -10/Materials | Entered Mines 1414 | -10/Mines | Learned location of 1 exit from Materials 1428 | -10/Mines | Assisted by bots powering up and referring to "LRC-V3" 1535 | -10/Mines | Learned Materials terminal intel 1596 | -10/Mines | Discovered new exit (range 6) 1748 | -10/Mines | Learned location of Zion (-6) 1764 | -10/Mines | Received a Rocket Launcher from a helpful Derelict 1845 | -10/Mines | Discovered new exit (range 9) 2200 | -10/Mines | Deemed a non-threat by the Exiles lab entrance 2200 | -10/Mines | Discovered new exit (range 5) 2210 | -10/Mines | Entered Exiles 2210 | -10/Exiles | Accompanied by 2 allies 2240 | -10/Exiles | Led the pair of lost Derelicts to a safe place 2249 | -10/Exiles | Met 8R-AWN 2278 | -10/Exiles | Met EX-HEX 2321 | -10/Exiles | Met EX-BIN 2338 | -10/Exiles | Aligned with FarCom system 2340 | -10/Exiles | Given EX-Vault access code 2377 | -10/Exiles | Opened EX-Vault 2388 | -10/Exiles | Found Chronowheel 2421 | -10/Exiles | Warned to stay clear of 0b10 Research branches 2467 | -10/Exiles | Met EX-DEC 2544 | -10/Exiles | Discovered new exit (range 14) 2565 | -10/Exiles | Left Exiles lab with Chronowheel 2565 | -10/Exiles | Entered Mines 2583 | -9/Mines | Met a Derelict bent on vengeance 2613 | -9/Mines | Lost 4 parts (1p1n1u1w) 2707 | -9/Mines | Assembled infested the area 2839 | -9/Mines | A weapon hastily lodged in a ceiling crevice suddenly fell to the ground 2996 | -9/Mines | Discovered new exit (range 15) 3045 | -9/Mines | Discovered new exit (range 16) 3159 | -9/Mines | Received a Mining Laser from a helpful Derelict 3298 | -9/Mines | Entered Materials 3298 | -8/Materials | Accompanied by 1 ally 3298 | -8/Materials | Evolved 4 slots: Propulsion x2, Utility x2 3299 | -8/Materials | Identified exit to Factory 3300 | -8/Materials | Loaded intel: 12 terminal locations 3644 | -8/Materials | Discovered exit to Factory (range 16) 4125 | -8/Materials | Lost 5 parts (1p1n3w) 4295 | -8/Materials | Core integrity fell below 50% 4405 | -8/Materials | Build established: Scavenger-Mutant 4739 | -8/Materials | Build established: Hacker-Mutant 5223 | -8/Materials | Garrison activated, responded to threat 5325 | -8/Materials | Lost 4 parts (1p2n1u) 5605 | -8/Materials | Entered Factory 5605 | -7/Factory | Accompanied by 1 ally 5605 | -7/Factory | Evolved 2 slots: Utility x2 6806 | -7/Factory | Self-destructed Last Messages --------------- 06580_ ALERT: Rogue bot located, Programmers report to Factory Zone 1Q. 06630_ Connecting with Fabricator... >>Network(Status) Querying network status... 6 records found: (162,87) - Loaded: M-14 Sweeper (113,94) - Loaded: Flexi-carbon Leg (196,51) - Idle (131,144) - Idle (134,129) - Idle (38,121) - Loaded: Stasis Canceller 06682_ G-47 Trooper destroyed. 06690_ Critical hit (Burn: +37). 06702_ G-47 Trooper destroyed. 06727_ Destroyed Shock Rifle. 06730_ Destroyed Gravmag System. 06732_ P-60 Hacker destroyed. 06735_ Acquired 68 matter. 06742_ Acquired 32 matter. Map ----- +----------------------------------------------------+ | ????????????????????????????????????????? | | ????????????????????????????????????????? | | ????????????????????????????????????????? | | ????????????????????????????????????????? | | ????????????????????????????????????????? | | ????????????????????????????????????????? | | ????????????????????????????????????????? | | ????????????????????????????????????????? | | ????????????????????????????????????????? | | ????????????????????????????????????????? | | ????????????????????????????????????????? | | ????????????????????????????????????????? | | ????????????????????????????????????????? | | ????????????????????????????????????????? | | ????????????????????????????????????????? | | ????????????????????????????????????????? | | ???????????Y?##?????????????????????????? | | ????????????? ?????????????????????????? | | ?????????#??"" ????????????????????????? | | ?????????# "R ??????########??????????? | | ?????????# """ ????? # #??????????? | | ?????????# ""?? # ""#??????????? | | ?????????# """ # T"#??????????? | | ?????????#!!! # ! ""#??????????? | | ?????????#!! """ #**%[ #??????????? | | ?????????#!! """ #= @] #??????????? | | ?????????? """ ##+#############??? | | ???????????? ??#[="""" #??? | | ?????????????? ????#= ""R" ! #??? | | ?????????????###+#######! "" " #??? | | ?????????????# #??? | | ?????????????# ###+#### | | ????########## # # | | ????# + ] + "" # | | ????# # ############### F" # | | ????# # #?????????????# " # | | ????# # #?????????????# "" # | | ????# # ############### # | | ????# # # ## """" # | | ????# # # ## """" # | | ????# # # """" ## """" # | | ????# # # """" ## """" # | | ????########## # """" ## """" # | | ?????????????# # """" ## "????? | | ?????????????# # """" " ## ????? | | ?????????????# # """" "" ####????? | | ?????????????# # """" G #???????? | | ?????????????# + "" #???????? | | ?????????????# # " #???????? | | ?????????????# # #???????? | +----------------------------------------------------+ Best States ------------- Heat Dissipation 34 Energy Generation 14 Energy Capacity 275 Matter Stores 300 Matter Capacity 300 Sight Range 16 Terrain Scan Density 10 Additional Mass Support 9 Evasion (%) 44 Recoil Reduction 4 Offensive Hacking 40 Defensive Hacking 10 Authchip Count 2 Item Schematics ----------------- None Robot Schematics ------------------ None Fabricated ------------ Nothing Alien Tech Used ----------------- None Achievements -------------- None Challenges ------------ None Game ------ Seed GatlingMiningMagmablaster Manual? 0 Play Time 00:51:30 Cumulative 48.6 hours Start 2024.04.12 @ 21:29:21 End 2024.04.13 @ 00:01:52 Sessions 3 Manual Loads 0 Difficulty Rogue Special Mode None Game No. 83 Rogue 83 Adventurer 0 Explorer 0 Win Type - Total 0 Types 0/0/0/0/0/0/0/0/0 Lore% 24 Gallery% 27 Achievement% 27 Wizard Run 0 Options --------- Layout 1 ASCII 0 Keyboard 0 Movement Mouse Keybinds 0 Fullscreen 2 Font 24/Smallcaps Map View 50x35 Zoom Use 0% Tactical HUD 1 Map Filters NONE Filters NONE Steam 1 RUN: 4a1aa72a-a392-4a41-88d2-a7c02f49e4ba